Cogmind - Beta 15 @@@ ROGUE MODE // 2025.05.30 @ 18:09:40 Player: Btuck Result: Destroyed by Piercing Trap Performance ------------- Evolutions (0) 0 Regions Visited (2) 400 Robots Destroyed (23) 115 Value Destroyed (552) 552 Prototype IDs (0) 0 Alien Tech Used (0) 0 Bonus (0) 0 TOTAL SCORE: 1067 Bonus ------- None Cogmind --------- Core Integrity 0/250 Matter 289/300 Energy 196/200 System Corruption 3% Temperature Cool (2) Movement Treading (160) Location -10/Subcaves Parts ------- > --- POWER (1) -------- Subdweller Power Source > --- PROPULSION (2) --- Light Treads Spiked Treads > --- UTILITY (2) ------ Medium Storage Unit Targeting Computer > --- WEAPON (2) ------- Subdweller Laser Battle Rifle > --- INVENTORY (10) --- Ion Engine Improved Terrain Scanner Tractor Beam Medium Laser Small Laser Subdweller Machine Gun Subdweller Machine Gun Subdweller Machine Gun Scrap Shield Fragment (45) Peak State ------------ > --- POWER ------------ Subdweller Power Source > --- PROPULSION ------- Light Treads Spiked Treads > --- UTILITY ---------- Medium Storage Unit Targeting Computer > --- WEAPON ----------- Subdweller Laser Subdweller Machine Gun > --- INVENTORY -------- Ion Engine Ion Engine Improved Terrain Scanner Tractor Beam Medium Laser Small Laser Subdweller Machine Gun [Rating: 12] Favorites ----------- Power Ion Engine Engine Ion Engine Propulsion Light Treads Treads Light Treads Utility Medium Storage Unit Device Heat Sink Storage Medium Storage Unit Processor Targeting Computer Weapon Small Laser Energy Gun Small Laser Ballistic Gun Battle Rifle Build | -11 -10 -10 ------- Run | Yrd Mat Sub Slots Evolved . | . . . Power . | . . . Propulsion . | . . . Utility . | . . . Weapon . | . . . Parts Attached 20 | 8 3 9 Power 3 | 1 1 1 Engine 3 | 1 1 1 Core . | . . . Reactor . | . . . Propulsion 4 | 2 . 2 Treads 4 | 2 . 2 Leg . | . . . Wheel . | . . . Hover . | . . . Flight . | . . . Utility 6 | 3 2 1 Device 3 | 2 1 . Storage 2 | 1 1 . Processor 1 | . . 1 Hackware . | . . . Protection . | . . . Artifact . | . . . Weapon 7 | 2 . 5 Energy Gun 5 | 2 . 3 Energy Cannon . | . . . Ballistic Gun 2 | . . 2 Ballistic Cannon . | . . . Launcher . | . . . Special Weapon . | . . . Impact Weapon . | . . . Slashing Weapon . | . . . Piercing Weapon . | . . . Special Melee Weapon . | . . . Unidentified Prototypes . | . . . Parts Lost 5 | . . 5 Power . | . . . Propulsion 2 | . . 2 Utility 1 | . . 1 Weapon 2 | . . 2 Highest Loss Streak 4 | . . 4 To Critical Strikes . | . . . Average Backups 4 | . 3 6 Power . | . . 1 Propulsion . | . . . Utility 2 | . 2 2 Weapon 1 | . 1 2 Tool/Special . | . . . Unused Backups 2 | . . 2 Power . | . . . Propulsion . | . . . Utility . | . . . Weapon 2 | . . 2 Tool/Special . | . . . Average Slot Usage (%) 97 | . 100 94 Engine 14 | . 14 14 Treads 25 | . 28 23 Device 9 | . 14 6 Storage 14 | . 14 14 Processor 4 | . . 7 Energy Gun 24 | . 28 20 Ballistic Gun 3 | . . 7 Peak Build Rating 12 | 9 9 12 Average Rating 8 | 5 7 9 On Entrance 5 | . 9 7 Naked Turns . | . . . Heaviest Build 23 | 13 18 23 Greatest Support 40 | 40 40 40 Greatest Overweight (x) 1 | . . 1 Average Overweight (x) . | . . . Largest Inventory Capacity 10 | 8 10 10 Average Capacity 9 | 7 8 10 Most Carried 9 | 2 7 9 Average Carried 4 | . 3 6 Final Capacity 10 | 8 10 10 Final Carried 9 | 2 7 9 Class Distribution -------------------- 90% | Mutant 9% | Scavenger-Mutant Dominant Class ---------------- Mutant | -10/Materials Mutant | -10/Subcaves Resources | -11 -10 -10 ----------- Run | Yrd Mat Sub Matter Collected 424 | 280 45 99 Remotely 171 | 171 . . Salvage Created 801 | 93 418 290 Parts 53 | 9 26 18 Haulers Intercepted 1 | . 1 . Recyclers Shooed 2 | . 2 . Parts Field Recycled . | . . . Retrieved Matter . | . . . Parts Self-Destructed 6 | . . 6 Prevented . | . . . Kills | -11 -10 -10 ------- Run | Yrd Mat Sub Combat Hostiles Destroyed 16 | . 10 6 Guns 16 | . 10 6 Classes Destroyed 7 | 2 4 1 Worker 2 | . 2 . Tunneler 3 | 2 1 . Hauler 1 | . 1 . Recycler 1 | 1 . . Swarmer 3 | . 3 . Grunt 7 | . 7 . Subdweller 6 | . . 6 Best Kill Streak 5 | 1 5 2 Combat Bots Only 3 | . 3 2 Max Kills in Single Turn 1 | 1 1 1 Gunslinging . | . . . Exploded . | . . . Melee . | . . . Uniques/NPCs Destroyed . | . . . Combat | -11 -10 -10 -------- Run | Yrd Mat Sub Hostile Shots Fired 87 | . 47 40 Missed 25 | . 13 12 Hits 62 | . 34 28 Projectile 62 | . 34 28 Critical Strikes 1 | . 1 . Damage Taken 1131 | . 394 737 Core 259 | . 58 201 Absorbed by Shields . | . . . Core Remaining (%) 100 | 100 . . Volleys Fired 70 | 11 36 23 Largest 2 | 2 2 2 Hottest 110 | 80 80 110 Shots Fired 142 | 22 74 46 Gun 142 | 22 74 46 Cannon . | . . . Launcher . | . . . Special . | . . . Kinetic 6 | . . 6 Thermal 136 | 22 74 40 Explosive . | . . . Electromagnetic . | . . . Robot Hit Streak 15 | 5 8 15 Robot Miss Streak 4 | 4 3 1 Penetration Max . | . . . Secondary Targets 2 | . . 2 Max Gunslinging Chain 1 | . . 1 Shots Hit Robots 101 | 10 52 39 Core Hits 41 | 4 23 14 Critical Kills . | . . . Critical Parts Destroyed 1 | . . 1 Critical Strikes 3 | . . 3 Burn 2 | . . 2 Destroy 1 | . . 1 Melee Attacks . | . . . Impact . | . . . Slashing . | . . . Piercing . | . . . Sneak Attacks . | . . . Combat Hostiles . | . . . Follow-up Attacks . | . . . Damage Inflicted 1196 | 121 608 467 Guns 1190 | 121 602 467 Cannons . | . . . Explosions . | . . . Melee . | . . . Ramming 6 | . 6 . Kinetic 76 | . . 76 Thermal 1114 | 121 602 391 Explosive . | . . . Electromagnetic . | . . . Impact . | . . . Slashing . | . . . Piercing . | . . . Highest Corruption 3 | . 3 3 Average Corruption 2 | . 2 3 Corruption Purged . | . . . Corruption Blocked . | . . . Effects 11 | . 7 4 Message Errors 3 | . 2 1 Matter Fused 3 | . 1 2 Heat Flow Errors 1 | . 1 . Energy Discharges 1 | . . 1 Parts Rejected 1 | . 1 . Misfires 2 | . 2 . Overload Shots . | . . . Overflow Damage . | . . . Projectiles . | . . . Explosions . | . . . Melee . | . . . Knockbacks . | . . . Impact . | . . . Kinetic . | . . . Secondary . | . . . Self-Inflicted Damage . | . . . Shots . | . . . Rammed 1 | . 1 . Targets Rammed 3 | . 3 . Kicked . | . . . Crushed 2 | . 2 . Highest Temperature 264 | 90 264 10 Average Temperature 80 | 39 113 4 Received Heat Transfer 345 | . 207 138 Siege Activations . | . . . Martial Activations . | . . . Shielding Activations . | . . . Robots Disrupted . | . . . Combat Hostiles . | . . . Robots Corrupted . | . . . Combat Hostiles . | . . . Parts Fried . | . . . Impact Corruptions . | . . . Robots Melted . | . . . Combat Hostiles . | . . . Parts Melted 4 | 1 1 2 Heat Transferred 2558 | 275 1350 933 Parts Sabotaged . | . . . Parts Stolen . | . . . Parts Stripped . | . . . Power Chain Reactions . | . . . Alert | -11 -10 -10 ------- Run | Yrd Mat Sub Maximum Alert Level . | . . . Low Security (%) 100 | 100 100 . Level 1 . | . . . Level 2 . | . . . Level 3 . | . . . Level 4 . | . . . Level 5 . | . . . High Security . | . . . Max Security . | . . . Peak Influence 98 | 5 98 . Initial . | . . . Average 31 | . 39 . Influence Increases 273 | 15 258 . Destroy 0b10 Robot/C 200 | . 200 . Destroy 0b10 Robot/NC 35 | 15 20 . Destroy Leader 32 | . 32 . Successful Hack 6 | . 6 . Influence Decreases 273 | 15 176 82 Entered New Map 40 | . . 40 Time Decay 231 | 15 176 40 Lost Part 2 | . . 2 Squads Dispatched 2 | . 2 . Investigation 1 | . 1 . Extermination . | . . . Reinforcement 1 | . 1 . Assault . | . . . Garrison . | . . . Intercept . | . . . Searches Triggered . | . . . Construction Impeded . | . . . Haulers Reinforced . | . . . Active Scanning Responses . | . . . Cargo Convoy Interrupts . | . . . Stealth | -11 -10 -10 --------- Run | Yrd Mat Sub Distress Signals 2 | . 2 . Communications Jammed . | . . . Distress Signals . | . . . Times Spotted 26 | . 20 6 Peak Tracking Total 6 | . 6 2 Tactical Retreats . | . . . Traps | -11 -10 -10 ------- Run | Yrd Mat Sub Traps Triggered 5 | . 3 2 Indirectly . | . . . Trap Hack Attempts . | . . . Triggered . | . . . Disarmed . | . . . Reprogrammed . | . . . Reused . | . . . Traps Extracted . | . . . Installed . | . . . Triggered . | . . . Machines | -11 -10 -10 ---------- Run | Yrd Mat Sub Machines Disabled . | . . . Max in Single Turn . | . . . Machines Repaired . | . . . Machines Dismantled . | . . . Machines Sabotaged . | . . . Overloaded Fab Kills . | . . . Hacking | -11 -10 -10 --------- Run | Yrd Mat Sub Machines Accessed 2 | . 2 . Terminals 2 | . 2 . Fabricators . | . . . Repair Stations . | . . . Recycling Units . | . . . Scanalyzers . | . . . Garrison Access . | . . . Total Hacks 3 | . 3 . Successful 1 | . 1 . Failed 2 | . 2 . Catastrophic . | . . . Database Lockouts . | . . . Manual 3 | . 3 . Terminals 3 | . 3 . Fabricators . | . . . Repair Stations . | . . . Recycling Units . | . . . Scanalyzers . | . . . Garrison Access . | . . . Terminal Hacks 1 | . 1 . Robot Analysis 1 | . 1 . Fabricator Hacks . | . . . Repair Station Hacks . | . . . Recycling Unit Hacks . | . . . Scanalyzer . | . . . Garrison Access Hacks . | . . . Unauthorized Hacks . | . . . Terminals . | . . . Fabricators . | . . . Repair Stations . | . . . Recycling Units . | . . . Scanalyzers . | . . . Garrison Access . | . . . Data Cores Recovered . | . . . Used . | . . . Hacking Detections 2 | . 2 . Full Trace Events . | . . . Feedback Events . | . . . Feedback Blocked . | . . . Robot Schematics Acquired . | . . . Robots Built . | . . . Authchips . | . . . Time . | . . . Total Robot Build Rating . | . . . Part Schematics Acquired . | . . . Parts Built . | . . . Authchips . | . . . Time . | . . . Total Part Build Rating . | . . . Parts Repaired . | . . . Time . | . . . Parts Recycled . | . . . Recycled Matter . | . . . Retrieved Matter . | . . . Retrieved Components . | . . . Parts Scanalyzed . | . . . Part Schematics Acquired . | . . . Parts Damaged . | . . . Bothacking | -11 -10 -10 ------------ Run | Yrd Mat Sub Used RIF Installer . | . . . Robots Hacked . | . . . Non-combat . | . . . Combat . | . . . Robot Hacks Applied . | . . . Relay Couplers Released . | . . . Fabnet Peak Effective % . | . . . Robots Rewired . | . . . Allies Hacked . | . . . Hacks Repelled . | . . . Allies | -11 -10 -10 -------- Run | Yrd Mat Sub Total Allies . | . . . Largest Group . | . . . Highest-Rated Group . | . . . Highest-Rated Ally . | . . . Total Orders . | . . . Ally Attacks . | . . . Total Damage . | . . . Kills . | . . . Allies Corrupted . | . . . Allies Melted . | . . . Intel | -11 -10 -10 ------- Run | Yrd Mat Sub Active Infowar (turns) 304 | 13 291 . Terrain 304 | 13 291 . Robot Analysis Total 1 | . 1 . Derelict Logs Recovered 1 | . . 1 Drone Launches . | . . . Drone Recoveries . | . . . Exploration | -11 -10 -10 ------------- Run | Yrd Mat Sub Turns Passed 1513 | 161 633 719 Spaces Moved 734 | 75 287 372 Core 4 | 4 . . Treads 730 | 71 287 372 Legs . | . . . Wheels . | . . . Hover . | . . . Flight . | . . . Fastest Speed 50 | 50 160 160 Average Speed 162 | 154 160 166 Slowest Speed 240 | 160 160 240 Overloaded Moves . | . . . Propulsion Burnouts . | . . . Robots Hopped . | . . . Potential Cave-ins . | . . . Cave-ins Triggered . | . . . Exploration Rate (%) 27 | 7 47 29 Regions Visited 2 Branch Regions 1 Pre-discovered Areas 1 | . . 1 Known Exits Taken . | . . . Unknown Exits Taken 2 | 1 1 . Scrap Searched 1 | . . 1 Spaces Dug . | . . . Terrain Destroyed . | . . . Melee . | . . . Projectile . | . . . AOE . | . . . Terrain Rammed . | . . . Walls Destroyed . | . . . Machines Disabled . | . . . Actions | -11 -10 -10 --------- Run | Yrd Mat Sub Total 904 | 95 386 423 Wait 65 | . 52 13 Move 732 | 74 286 372 Hop . | . . . Pick Up 9 | 1 4 4 Fast Attach 11 | 8 1 2 Attach 4 | . . 4 Detach 2 | 1 . 1 Swap 6 | . 3 3 Drop 2 | . 1 1 Fire 70 | 11 36 23 Melee . | . . . Ram . | . . . Kick . | . . . Crush 3 | . 3 . Escape Stasis . | . . . Rewire . | . . . Trap . | . . . Miscellaneous . | . . . Route ------- -11/Scrapyard -10/Materials (discovered 3 exits: [*Mat x2] / [*Sub]) -10/Subcaves History --------- Turn | Location | Event 32 | -11/Scrapyard | Discovered new exit (range 15) 162 | -11/Scrapyard | Entered Materials 226 | -10/Materials | Discovered new exit (range 16) 296 | -10/Materials | Discovered new exit (range 10) 303 | -10/Materials | Build established: Mutant 547 | -10/Materials | Discovered new exit (range 16) 795 | -10/Materials | Entered Subcaves 911 | -10/Subcaves | Core integrity fell below 50% 947 | -10/Subcaves | Lost 4 parts (2n2w) 1097 | -10/Subcaves | Ambushed by Subdwellers from Twisted Machinery 1113 | -10/Subcaves | Core integrity fell below 20% 1129 | -10/Subcaves | Learned Materials stockpile data 1231 | -10/Subcaves | Learned location of Zion (-6) 1231 | -10/Subcaves | Met a Zionite searching for "candidates" 1514 | -10/Subcaves | Destroyed by Piercing Trap Last Messages --------------- 01240_ Found 56 Matter. 01243_ Acquired Battle Rifle. 01247_ Acquired Sub. Machine Gun. 01248_ Acquired 10 matter. 01277_ System corrupted: Matter fused (-9). 01294_ FZ-5A1(R) suffers critical hit (Destroy). 01294_ Destroyed Sub. Monowheel. 01300_ FZ-5A1(R) destroyed. 01300_ Switching to secondary target: MA-K8D(R). 01306_ MA-K8D(R) destroyed. 01314_ Acquired 24 matter. 01317_ Acquired Scrap Shield Fragment. 01421_ Triggered Piercing Trap. 01421_ Spikes shoot up from the floor. 01421_ Critical hit (Impale). 01460_ System corrupted: Matter fused (-8). 01484_ IKB7G%X9DL3GMZNZF04C4CM8VGRX1SF4 YGV2XLT 01514_ Triggered Piercing Trap. 01514_ Spikes shoot up from the floor. 01514_ Critical hit (Impale). Map ----- +----------------------------------------------------+ | ?????????????????????# # ### *#### | | ?????????????????????# #" ## #%!&# | | ????????????????#???### ## ## %[& | | ???????????????#"" ## # # """ #"#! | | ???????????????" "" "" ## # """" ### | | ??????????????? """""" ## ### """ #"## | | ???????????????""" """"### ##?## """######## | | ??????????????? """"""#### #???## #""#??????? | | ????????????????######## #????##### ""??????? | | ???????????????????????# ###???????? ""#?????? | | ???????????????????????# ####??????## ##?????? | | ???????????????????????# #???????# ""??????? | | ???????????????????????# #???????#""???????? | | ???????????????????????# ##???????##"???????? | | ???????????????????????# #?###??????????????? | | ???????????????????????# #?#"####???????????? | | ???????????????????????## ## #?#" ##??????????? | | ????????????????????????#### ### "##?????????? | | ????????????????????????### " "#?????????? | | ???????????????????????## " #??????????? | | ???????????????????????# " #??????????? | | ???????????????????????## "#??????????? | | ???????????????????###### ### #??????????? | | ???????????????????# "# ###?# #??????????? | | ????????????????????#""" ##??### ##??????????? | | ????????????????????# "" @ #????# ##???????????? | | ????????????????????#" #"# #??####????????????? | | ????????????????????#""### #??????????????????? | | ???????????????????#""???# #??????????????????? | | ???????????????????# "???"" ##??????????????????? | | ?????????????????????????#" "#???????????????????? | | ?????????????????????????#"""#???????????????????? | | ??????????????????????????#"" ???????????????????? | | ???????????????????????????#"##??????????????????? | | ?????????????????????????????????????????????????? | | ?????????????????????????????????????????????????? | | ?????????????????????????????????????????????????? | | ?????????????????????????????????????????????????? | | ?????????????????????????????????????????????????? | | ?????????????????????????????????????????????????? | | ?????????????????????????????????????????????????? | | ?????????????????????????????????????????????????? | | ?????????????????????????????????????????????????? | | ?????????????????????????????????????????????????? | | ?????????????????????????????????????????????????? | | ?????????????????????????????????????????????????? | | ?????????????????????????????????????????????????? | | ?????????????????????????????????????????????????? | | ?????????????????????????????????????????????????? | | ?????????????????????????????????????????????????? | +----------------------------------------------------+ Best States ------------- Heat Dissipation 35 Energy Generation 15 Energy Capacity 250 Matter Stores 300 Matter Capacity 300 Sight Range 16 Terrain Scan Range 16 Terrain Scan Density 10 Evasion (%) 40 Targeting Accuracy 5 Recoil Reduction 2 Item Schematics ----------------- None Robot Schematics ------------------ None Fabricated ------------ Nothing Repaired ---------- Nothing Alien Tech Used ----------------- None Achievements -------------- None Challenges ------------ None Game ------ Seed SurveybotTerrabombCompactor Manual? 0 Play Time 00:11:18 Cumulative 65.8 hours Start 2025.05.30 @ 18:01:47 End 2025.05.30 @ 18:09:40 Sessions 1 Manual Loads 0 Difficulty Rogue Special Mode None Game No. 91 Rogue 91 Adventurer 0 Explorer 0 Win Type - Total 1 Types 1/0/0/0/0/0/0/0/0/0 Lore% 32 Gallery% 39 Achievement% 37 Wizard Run 0 Options --------- Layout 1 ASCII 0 Keyboard 1 Movement Numpad Keybinds 0 Fullscreen 1 Font 32/Smallcaps Map View 50x35 Zoom Use 0% Tactical HUD 1 Map Filters NONE Filters NONE Steam 1 RUN: 27a58ec7-e2c6-4f26-81e9-d88ba9bd3814